bitfinex/quotes_BTCUSD_20241111
["timestamp","ask_amount","ask_price","bid_price","bid_amount"]
[1731352459193,0.27452647,85680.0,85670.0,0.17525105]
[1731352459620,0.116716,85678.0,85661.0,0.17525105]
[1731352459830,0.005,85673.0,85662.0,0.17525105]
[1731352460035,0.1831934,85672.0,85662.0,0.17525105]
[1731352460292,0.14294075,85672.0,85662.0,0.17525105]
[1731352460458,0.14294075,85672.0,85652.0,0.17525105]
[1731352460690,0.03457682,85671.0,85652.0,0.17525105]
[1731352460902,0.1,85676.0,85652.0,0.17525105]
[1731352460903,0.03457682,85669.0,85664.0,0.17525105]
[1731352461114,0.03457682,85669.0,85653.0,0.11994075]
[1731352461115,0.03457682,85673.0,85653.0,0.11994075]
[1731352461350,0.023,85674.0,85652.0,0.17525105]
[1731352461586,0.11994075,85674.0,85652.0,0.17525105]
[1731352461812,0.17525105,85672.0,85652.0,0.17525105]
[1731352462044,0.11994075,85674.0,85661.0,0.17525105]
[1731352462045,0.15451757,85674.0,85661.0,0.17525105]
[1731352462281,0.03457682,85677.0,85652.0,0.2951918]
[1731352462494,0.02404687,85680.0,85643.0,0.17525105]
[1731352462495,0.03457682,85676.0,85662.0,0.17525105]
[1731352462705,0.03457682,85679.0,85653.0,0.2951918]
[1731352462933,0.03457682,85680.0,85662.0,0.17525105]
[1731352463157,0.03457682,85680.0,85653.0,0.2951918]
[1731352463158,0.02812184,85679.0,85663.0,0.17525105]
[1731352463374,0.02476675,85681.0,85663.0,0.17525105]
[1731352463590,0.03457682,85680.0,85663.0,0.17525105]
[1731352463827,0.03457682,85678.0,85663.0,0.17525105]
[1731352464034,0.03465341,85677.0,85663.0,0.17525105]
[1731352464257,0.03465341,85672.0,85654.0,0.17525105]
[1731352464509,0.03465341,85667.0,85664.0,0.17525105]
[1731352464719,0.03465341,85666.0,85655.0,0.17525105]
[1731352465130,0.07797018,85676.0,85643.0,0.17525105]
[1731352465131,0.03465341,85667.0,85643.0,0.18025105]
[1731352465299,0.05916329,85671.0,85656.0,0.17525105]
[1731352465545,0.03465341,85670.0,85652.0,0.0008492]
[1731352465744,0.03465341,85668.0,85653.0,0.17525105]
[1731352465943,0.17525105,85675.0,85653.0,0.17525105]
[1731352465944,0.03465341,85667.0,85653.0,0.17525105]
[1731352466143,0.03465341,85666.0,85653.0,0.17525105]
[1731352466328,0.03465341,85667.0,85653.0,0.17525105]
[1731352466524,0.19965915,85675.0,85653.0,0.17525105]
[1731352466525,0.03465341,85665.0,85653.0,0.17525105]
[1731352466732,0.03465341,85665.0,85652.0,0.0008492]
[1731352466733,0.15458572,85664.0,85654.0,0.11994075]
[1731352467000,0.05198012,85671.0,85654.0,0.11994075]
[1731352467001,0.03465341,85667.0,85655.0,0.17525105]
[1731352467212,0.03465341,85666.0,85656.0,0.11994075]
[1731352467419,0.02965341,85666.0,85652.0,0.0008492]
[1731352467589,0.02965341,85664.0,85653.0,0.17525105]
[1731352467735,0.05198012,85669.0,85653.0,0.17525105]
[1731352467939,0.05198012,85670.0,85652.0,0.0008492]
[1731352468135,0.05198012,85667.0,85653.0,0.17525105]
[1731352468575,0.05198012,85666.0,85652.0,0.0008492]
[1731352468791,0.24121926,85674.0,85653.0,0.17525105]
[1731352468792,0.05198012,85663.0,85653.0,0.17525105]
[1731352468950,0.05198012,85663.0,85653.0,0.11994075]
[1731352469168,0.05198012,85659.0,85652.0,0.0008492]
[1731352469673,0.05198012,85658.0,85652.0,0.0008492]
[1731352470079,0.05198012,85659.0,85652.0,0.0008492]
[1731352470292,0.06930683,85662.0,85652.0,0.0008492]
[1731352470293,0.05198012,85658.0,85652.0,0.0008492]
[1731352470537,0.09391129,85662.0,85653.0,0.11994075]
[1731352470538,0.02460446,85662.0,85653.0,0.11994075]
[1731352470745,0.32983677,85673.0,85653.0,0.11994075]
[1731352470943,0.03298368,85672.0,85653.0,0.11994075]
[1731352471198,0.05211435,85659.0,85653.0,0.11994075]
[1731352471521,0.05211435,85659.0,85655.0,0.17525105]
[1731352471668,0.05211435,85659.0,85656.0,0.11994075]
[1731352472474,0.05211435,85663.0,85656.0,0.11994075]
[1731352472876,0.05211435,85663.0,85652.0,0.0008492]
[1731352473086,0.05211435,85663.0,85653.0,0.11994075]
[1731352473299,0.07296009,85663.0,85652.0,0.0008492]
[1731352473492,0.07574704,85663.0,85652.0,0.0008492]
[1731352473906,0.02363269,85663.0,85652.0,0.0008492]
[1731352474235,0.15458572,85664.0,85652.0,0.0008492]
[1731352474430,0.15458572,85663.0,85653.0,0.17525105]
[1731352474648,0.08685725,85665.0,85653.0,0.11994075]
[1731352474897,0.11121967,85665.0,85653.0,0.11994075]
[1731352475327,0.02436242,85665.0,85653.0,0.11994075]
[1731352475747,0.17525105,85676.0,85653.0,0.11994075]
[1731352476162,0.19970559,85676.0,85655.0,0.17525105]
[1731352476578,0.02445454,85676.0,85664.0,0.17525105]
[1731352476792,0.02445454,85676.0,85666.0,0.17525105]
[1731352476986,0.05211169,85679.0,85668.0,0.12494075]
[1731352477439,0.17525105,85674.0,85668.0,0.12494075]
[1731352477586,0.05211169,85679.0,85668.0,0.12494075]
[1731352477587,0.05211169,85679.0,85669.0,0.17525105]
[1731352477787,0.05211169,85679.0,85672.0,0.17525105]
[1731352477969,0.05211169,85679.0,85678.0,0.12494075]
[1731352478789,0.05211169,85679.0,85678.0,0.11994075]
[1731352478988,0.05204111,85693.0,85678.0,0.11994075]
[1731352479655,0.05204111,85693.0,85679.0,0.17525105]
[1731352479830,0.05204111,85693.0,85680.0,0.11994075]
[1731352480273,0.17525105,85692.0,85680.0,0.11994075]
[1731352480614,0.05204111,85693.0,85680.0,0.11994075]
[1731352480812,0.05204111,85693.0,85673.0,0.005]
[1731352480983,0.05204111,85693.0,85677.0,0.17525105]
[1731352482002,0.03474701,85689.0,85679.0,0.17525105]
[1731352482204,0.05204111,85693.0,85688.0,0.17525105]
[1731352482452,0.05204111,85693.0,85688.0,0.11994075]
[1731352482795,0.05204111,85693.0,85689.0,0.11994075]
[1731352482979,0.05204111,85693.0,85681.0,0.005]
[1731352483202,0.05204111,85693.0,85673.0,0.005]
[1731352483203,0.08678327,85693.0,85673.0,0.005]
[1731352483509,0.08678327,85693.0,85668.0,0.0008492]
[1731352483510,0.03474216,85683.0,85674.0,0.17525105]
[1731352483731,0.03474216,85680.0,85674.0,0.17525105]
[1731352483931,0.03474216,85680.0,85677.0,0.11994075]
[1731352484210,0.03474216,85680.0,85668.0,0.0008492]
[1731352484211,0.05204111,85693.0,85686.0,0.005]
[1731352484420,0.05204111,85693.0,85687.0,0.11994075]
[1731352484647,0.05381164,85709.0,85695.0,0.005]
[1731352484648,0.17525105,85705.0,85695.0,0.005]
[1731352484844,0.17525105,85705.0,85696.0,0.11994075]
[1731352485079,0.0016984,85709.0,85696.0,0.12494075]
[1731352485365,0.0016984,85709.0,85696.0,0.11994075]
[1731352485547,0.0016984,85709.0,85696.0,0.12494075]
[1731352486165,0.0016984,85709.0,85697.0,0.17525105]
[1731352486364,0.0016984,85709.0,85706.0,0.005]
[1731352486564,0.0016984,85709.0,85707.0,0.11994075]
[1731352487196,0.0016984,85709.0,85707.0,0.12494075]
[1731352487825,0.0016984,85709.0,85707.0,0.02494075]
[1731352488055,0.0016984,85709.0,85707.0,0.01994075]
[1731352488313,0.0016984,85709.0,85708.0,0.005]
[1731352488528,0.0016984,85709.0,85708.0,0.12494075]
[1731352489078,0.0016984,85709.0,85708.0,0.13743483]
[1731352489347,0.0016984,85709.0,85708.0,0.16043483]
[1731352489577,0.0016984,85709.0,85708.0,0.28973483]
[1731352489692,0.0266984,85723.0,85722.0,0.005]
[1731352489906,0.0216984,85723.0,85722.0,0.12494075]
[1731352490326,0.0216984,85723.0,85718.0,0.005]
[1731352490539,0.0216984,85723.0,85719.0,0.11994075]
[1731352490754,0.0216984,85723.0,85713.0,0.005]
[1731352491004,0.0216984,85723.0,85718.0,0.005]
[1731352491218,0.0216984,85723.0,85719.0,0.11994075]
[1731352491608,0.0216984,85723.0,85722.0,0.14794075]
[1731352491813,0.0216984,85723.0,85722.0,0.12494075]
[1731352492909,0.0216984,85723.0,85722.0,0.14794075]
[1731352494122,0.0216984,85723.0,85722.0,0.24794075]
[1731352494478,0.001698,85735.0,85722.0,0.24794075]
[1731352494479,0.001698,85735.0,85734.0,0.0737]
[1731352494714,0.001698,85735.0,85734.0,0.27364075]
[1731352495275,0.0016996,85786.0,85734.0,0.37597297]
[1731352495476,0.0017072,85755.0,85754.0,0.005]
[1731352496685,0.0017072,85755.0,85754.0,0.12494075]
[1731352497893,0.14885785,85773.0,85760.0,0.005]
[1731352498070,0.15458572,85783.0,85761.0,0.11994075]
[1731352498278,0.0016996,85786.0,85775.0,0.005]
[1731352498462,0.0016996,85786.0,85775.0,0.12494075]
[1731352499501,0.0016996,85786.0,85775.0,0.11994075]
[1731352499720,0.0016996,85786.0,85773.0,0.005]
[1731352499986,0.0016996,85786.0,85752.0,0.0775]
[1731352499987,0.0016996,85786.0,85761.0,0.17525105]
[1731352500203,0.15458572,85785.0,85762.0,0.17525105]
[1731352500415,0.0016996,85786.0,85737.0,0.0775]
[1731352500416,0.44977752,85775.0,85738.0,0.005]
[1731352500693,0.32568242,85774.0,85769.0,0.17525105]
[1731352500890,0.1,85772.0,85760.0,0.17525105]
[1731352501096,0.0016984,85755.0,85738.0,0.005]
[1731352501531,0.0016984,85755.0,85730.0,0.005]
[1731352501730,0.0016984,85755.0,85753.0,0.17525105]
[1731352501937,0.0016984,85755.0,85738.0,0.005]
[1731352502142,0.0016984,85755.0,85742.0,0.17525105]
[1731352502347,0.0016984,85755.0,85742.0,0.2951918]
[1731352502772,0.0016984,85755.0,85743.0,0.11994075]
[1731352502951,0.0016984,85755.0,85743.0,0.2951918]
[1731352503383,0.0016984,85755.0,85749.0,0.005]
[1731352503527,0.0016984,85755.0,85754.0,0.12494075]
[1731352504171,0.0016984,85755.0,85754.0,0.20474075]
[1731352506473,0.0017058,85776.0,85754.0,0.30474075]
[1731352506672,0.0017058,85776.0,85775.0,0.12494075]
[1731352507373,0.0017058,85776.0,85761.0,0.005]
[1731352507574,0.0017058,85776.0,85750.0,0.17525105]
[1731352507575,0.03161336,85776.0,85750.0,0.17525105]
[1731352507768,0.03161336,85776.0,85759.0,0.17525105]
[1731352507897,0.02994516,85775.0,85759.0,0.17525105]
[1731352508102,0.02994516,85775.0,85751.0,0.11994075]
[1731352508103,1.523,85774.0,85751.0,0.11994075]
[1731352508317,1.523,85774.0,85741.0,0.17525105]
[1731352508318,0.123,85770.0,85752.0,0.17525105]
[1731352508525,0.023,85768.0,85753.0,0.17525105]
[1731352508751,0.023,85768.0,85754.0,0.17525105]
[1731352508752,0.023,85766.0,85754.0,0.17525105]
[1731352509007,0.023,85766.0,85741.0,0.17525105]
[1731352509008,0.005,85761.0,85741.0,0.17525105]
[1731352509211,0.139608,85757.0,85750.0,0.17525105]
[1731352509358,0.023,85755.0,85741.0,0.17525105]
[1731352509536,0.1,85754.0,85741.0,0.17525105]
[1731352509738,0.023,85753.0,85741.0,0.17525105]
[1731352510325,0.03052502,85768.0,85741.0,0.17525105]
[1731352510526,0.123,85759.0,85741.0,0.17025105]
[1731352511414,1.623,85759.0,85741.0,0.17025105]
[1731352511616,1.62159029,85759.0,85741.0,0.17025105]
[1731352511825,0.03636344,85769.0,85718.0,0.005]
[1731352511826,0.03443482,85773.0,85767.0,0.005]
[1731352512035,0.03443482,85773.0,85759.0,0.0455]
[1731352512036,0.0016996,85786.0,85777.0,0.005]
[1731352512241,0.0016996,85786.0,85752.0,0.005]
[1731352512242,0.10548226,85786.0,85756.0,0.005]
[1731352512475,0.10548226,85786.0,85735.0,0.1]
[1731352512476,0.005,85776.0,85729.0,0.007]
[1731352512680,0.0482,85783.0,85722.0,0.005]
[1731352512895,0.082,85770.0,85712.0,0.005]
[1731352513096,0.69970845,85753.0,85713.0,0.11994075]
[1731352513300,0.16814075,85752.0,85741.0,0.0008486]
[1731352513426,0.69970845,85742.0,85741.0,0.0008486]
[1731352514016,0.21394025,85752.0,85741.0,0.0008486]
[1731352514227,0.69970845,85744.0,85741.0,0.0008486]
[1731352514402,0.11994075,85743.0,85696.0,0.005]
[1731352514646,0.11436487,85751.0,85709.0,0.005]
[1731352514647,0.11994075,85742.0,85709.0,0.005]
[1731352514836,0.69970845,85728.0,85710.0,0.11994075]
[1731352515041,0.69970845,85737.0,85710.0,0.11994075]
[1731352515042,0.69970845,85727.0,85710.0,0.11994075]
[1731352515626,0.69970845,85711.0,85689.0,0.105]
[1731352515829,0.69970845,85727.0,85690.0,0.11994075]
[1731352515830,0.8196492,85727.0,85690.0,0.11994075]
[1731352516029,0.69970845,85707.0,85690.0,0.11994075]
[1731352516467,0.69970845,85698.0,85687.0,0.0008492]
[1731352516831,0.69970845,85698.0,85666.0,0.002]
[1731352516832,0.002,85678.0,85611.0,0.0006942]
[1731352517030,0.005,85683.0,85668.0,0.11994075]
[1731352517031,0.002,85677.0,85668.0,0.11994075]
[1731352517252,0.17504449,85669.0,85668.0,0.11994075]
[1731352517913,0.17704449,85669.0,85668.0,0.11994075]
[1731352518343,0.005,85675.0,85668.0,0.11994075]
[1731352518344,0.002,85675.0,85668.0,0.13193483]
[1731352518493,0.17504449,85672.0,85668.0,0.13193483]
[1731352518865,0.17469149,85672.0,85668.0,0.13193483]
[1731352519069,0.17469149,85672.0,85634.0,0.1165]
[1731352519070,0.005,85659.0,85634.0,0.1165]
[1731352519296,0.002,85651.0,85641.0,0.11994075]
[1731352519987,0.002,85646.0,85641.0,0.11994075]
[1731352520401,0.002,85642.0,85641.0,0.11994075]
[1731352520841,0.005,85631.0,85623.0,0.0008482]
[1731352521070,0.005,85645.0,85623.0,0.0008482]
[1731352521071,0.002,85625.0,85624.0,0.11994075]
[1731352521233,0.007,85625.0,85623.0,0.0008482]
[1731352521431,0.17504449,85636.0,85623.0,0.12078895]
[1731352521432,0.007,85624.0,85623.0,0.12078895]
[1731352522025,0.002,85630.0,85623.0,0.12078895]
[1731352522240,0.17504449,85625.0,85624.0,0.11994075]
[1731352522451,0.005,85628.0,85624.0,0.11994075]
[1731352522452,0.002,85628.0,85624.0,0.11994075]
[1731352522910,0.002,85636.0,85627.0,0.11994075]
[1731352523140,0.17504449,85654.0,85627.0,0.11994075]
[1731352523141,0.002,85628.0,85627.0,0.11994075]
[1731352523567,0.007,85624.0,85623.0,0.0008482]
[1731352523778,0.007,85624.0,85623.0,0.12078895]
[1731352524684,0.007,85624.0,85623.0,0.11578895]
[1731352525311,0.002,85615.0,85614.0,0.0008502]
[1731352525617,0.002,85615.0,85614.0,0.12079095]
[1731352526143,0.005,85623.0,85614.0,0.12079095]
[1731352526268,0.002,85621.0,85615.0,0.11994075]
[1731352526798,0.002,85616.0,85615.0,0.11994075]
[1731352527111,0.005,85616.0,85615.0,0.11994075]
[1731352527351,0.002,85618.0,85615.0,0.11994075]
[1731352527477,0.002,85616.0,85615.0,0.11994075]
[1731352528125,0.002,85616.0,85614.0,0.0008502]
[1731352528126,0.002,85615.0,85614.0,0.0008502]
[1731352529129,0.002,85616.0,85614.0,0.0008502]
[1731352529332,0.002,85615.0,85614.0,0.0008502]
[1731352529734,0.007,85615.0,85614.0,0.0008502]
[1731352530547,0.005,85615.0,85614.0,0.0008502]
[1731352530783,0.005,85621.0,85614.0,0.0008502]
[1731352530784,0.0019,85621.0,85614.0,0.12079095]
[1731352531012,0.005,85623.0,85615.0,0.11994075]
[1731352531013,0.0019,85620.0,85615.0,0.11994075]
[1731352531346,0.17504449,85634.0,85616.0,0.01214852]
[1731352531550,0.17504449,85634.0,85623.0,0.11994075]
[1731352531844,0.17504449,85625.0,85623.0,0.11994075]
[1731352532047,0.005,85630.0,85623.0,0.11994075]
[1731352532471,0.005,85624.0,85623.0,0.11994075]
[1731352532902,0.005,85621.0,85614.0,0.0008502]
[1731352533151,0.005,85615.0,85614.0,0.0008502]
[1731352533367,0.005,85615.0,85601.0,0.0008489]
[1731352533368,0.0069,85602.0,85601.0,0.0008489]
[1731352533554,0.0069,85602.0,85601.0,0.12078965]
[1731352533855,0.0019,85602.0,85601.0,0.12078965]
[1731352534085,0.0019,85603.0,85601.0,0.12078965]
[1731352534302,0.0019,85603.0,85602.0,0.11994075]
[1731352535453,0.0069,85602.0,85601.0,0.0008489]
[1731352536314,0.0069,85602.0,85601.0,0.0003489]
[1731352536520,0.6889,85602.0,85601.0,0.0003489]
[1731352536954,0.6939,85602.0,85601.0,0.0003489]
[1731352537147,0.0069,85602.0,85601.0,0.0003489]
[1731352538004,0.0019,85602.0,85601.0,0.12028965]
[1731352538427,0.0019,85602.0,85601.0,0.11994075]
[1731352539045,0.0019,85600.0,85580.0,0.1]
[1731352539196,0.0019,85600.0,85584.0,0.1]
[1731352539402,0.005,85598.0,85586.0,0.1]
[1731352539603,0.005,85589.0,85533.0,0.0003]
[1731352539876,0.0019,85579.0,85572.0,0.11994075]
[1731352540075,0.005,85578.0,85572.0,0.11994075]
[1731352540286,0.005,85577.0,85572.0,0.11994075]
[1731352540403,0.005,85575.0,85545.0,0.0497]
[1731352540615,0.0069,85572.0,85547.0,0.03052376]
[1731352540817,0.0069,85572.0,85533.0,0.0003]
[1731352541102,0.0069,85572.0,85533.0,0.00263782]
[1731352541309,0.0069,85572.0,85534.0,0.00233772]
[1731352542142,0.0069,85572.0,85543.0,0.1]
[1731352542295,0.0069,85572.0,85534.0,0.00233772]
[1731352542481,0.0069,85572.0,85535.0,0.00233779]
[1731352542684,0.0069,85572.0,85543.0,0.1]
[1731352542888,0.0069,85572.0,85535.0,0.00233779]
[1731352543172,0.0069,85572.0,85543.0,0.1]
[1731352543292,0.00684037,85572.0,85544.0,0.00233771]
[1731352543491,0.0816,85584.0,85533.0,0.03022044]
[1731352543492,0.005,85584.0,85571.0,0.12014075]
[1731352543723,0.00184037,85596.0,85577.0,0.1]
[1731352543893,0.005,85598.0,85579.0,0.1]
[1731352544283,0.005,85598.0,85580.0,0.11994075]
[1731352544500,0.17504449,85589.0,85585.0,0.1]
[1731352544677,0.17504449,85589.0,85587.0,0.1]
[1731352544908,0.005,85600.0,85588.0,0.11994075]
[1731352545112,0.17504449,85594.0,85588.0,0.11994075]
[1731352545318,0.00184037,85596.0,85588.0,0.11994075]
[1731352545527,0.00684037,85600.0,85588.0,0.11994075]
[1731352545747,0.005,85600.0,85588.0,0.11994075]
[1731352546362,0.00684037,85600.0,85588.0,0.11994075]
[1731352546491,0.00184037,85604.0,85588.0,0.11994075]
[1731352546691,0.00171066,85604.0,85589.0,0.1]
[1731352546935,0.17504449,85596.0,85591.0,0.1]
[1731352547278,0.00171066,85594.0,85592.0,0.11994075]
[1731352547393,0.00171066,85593.0,85592.0,0.21994075]
[1731352547790,0.00171066,85597.0,85592.0,0.21994075]
[1731352549359,0.00171066,85598.0,85592.0,0.24201989]
[1731352549566,0.00171066,85611.0,85593.0,0.1]
[1731352549779,0.682,85617.0,85600.0,0.1]
[1731352550011,0.17504449,85633.0,85594.0,0.00233646]
[1731352550012,0.17504449,85613.0,85612.0,0.023]
[1731352550411,0.17504449,85633.0,85612.0,0.023]
[1731352550794,0.17504449,85633.0,85617.0,0.1]
[1731352550998,0.17504449,85633.0,85619.0,0.1]
[1731352551202,0.17504449,85623.0,85621.0,0.1]
[1731352551362,0.17504449,85623.0,85598.0,0.0786]
[1731352551363,0.17504449,85623.0,85622.0,0.11994075]
[1731352551566,0.005,85628.0,85622.0,0.11994075]
[1731352551781,0.00171066,85624.0,85622.0,0.11994075]
[1731352552199,0.00171066,85617.0,85592.0,0.023]
[1731352552459,0.00171066,85618.0,85601.0,0.1]
[1731352552657,0.00171066,85616.0,85603.0,0.1]
[1731352553017,0.00168837,85624.0,85607.0,0.11994075]
[1731352553194,0.17504449,85622.0,85608.0,0.1]
[1731352553393,0.00168837,85621.0,85609.0,0.11994075]
[1731352553982,0.00168837,85617.0,85609.0,0.11994075]
[1731352554445,0.00168837,85617.0,85584.0,0.0802]
[1731352554446,0.005,85605.0,85569.0,0.0498]
[1731352554584,0.005,85604.0,85589.0,0.11994075]
[1731352554805,0.00168837,85602.0,85589.0,0.11994075]
[1731352555017,0.00168837,85595.0,85589.0,0.11994075]
[1731352555654,0.00168837,85600.0,85589.0,0.11994075]
[1731352555888,0.00168837,85601.0,85589.0,0.11994075]
[1731352556183,0.00168837,85601.0,85569.0,0.0498]
[1731352556184,0.17504449,85603.0,85601.0,0.023]
[1731352556507,0.17504449,85619.0,85598.0,0.1]
[1731352556703,0.17504449,85619.0,85601.0,0.023]
[1731352556905,0.17504449,85610.0,85603.0,0.023]
[1731352557078,0.12258072,85610.0,85605.0,0.023]
[1731352557282,0.17504449,85619.0,85609.0,0.11994075]
[1731352557494,0.17504449,85619.0,85612.0,0.11994075]
[1731352557668,0.17504449,85619.0,85613.0,0.1]
[1731352557868,0.17504449,85619.0,85614.0,0.11994075]
[1731352558065,0.17504449,85619.0,85615.0,0.1]
[1731352558309,0.00168837,85624.0,85616.0,0.11994075]
[1731352558659,0.00168837,85631.0,85616.0,0.11994075]
[1731352558861,0.17504449,85623.0,85616.0,0.11994075]
[1731352559071,0.00168837,85628.0,85616.0,0.11994075]
[1731352559283,0.00168837,85631.0,85616.0,0.11987293]
[1731352559485,0.0017012,85634.0,85619.0,0.11994075]
[1731352559613,0.0017012,85634.0,85624.0,0.11994075]
[1731352559823,0.0017012,85634.0,85633.0,0.14294075]
[1731352560735,0.0017012,85634.0,85633.0,0.24294075]
[1731352561511,0.17504449,85663.0,85636.0,0.023]
[1731352561730,0.17504449,85654.0,85638.0,0.023]
[1731352561969,0.17504449,85654.0,85640.0,0.023]
[1731352562354,0.17504449,85663.0,85640.0,0.023]
[1731352562355,0.17504449,85663.0,85645.0,0.17504449]
[1731352562573,0.17504449,85687.0,85646.0,0.1688]
[1731352562574,0.17504449,85661.0,85646.0,0.1688]
[1731352563395,0.17504449,85678.0,85661.0,0.123]
[1731352563546,0.17504449,85669.0,85661.0,0.123]
[1731352563753,0.17504449,85669.0,85663.0,0.023]
[1731352563994,0.17504449,85678.0,85661.0,0.1]
[1731352563995,0.17504449,85668.0,85661.0,0.1]
[1731352564199,0.17504449,85668.0,85646.0,0.17504449]
[1731352564403,0.005,85677.0,85655.0,0.17504449]
[1731352564649,0.17504449,85669.0,85656.0,0.11994075]
[1731352564858,0.18004449,85669.0,85656.0,0.11994075]
[1731352565058,0.005,85677.0,85657.0,0.17504449]
[1731352565231,0.005,85677.0,85658.0,0.11994075]
[1731352565430,0.005,85673.0,85658.0,0.11994075]
[1731352565641,0.005,85669.0,85658.0,0.11994075]
[1731352565841,0.00668837,85669.0,85658.0,0.11994075]
[1731352566251,0.005,85677.0,85659.0,0.17504449]
[1731352566489,0.005,85677.0,85660.0,0.11994075]
[1731352566490,0.18004449,85677.0,85660.0,0.11994075]
[1731352566631,0.18173286,85677.0,85660.0,0.11994075]
[1731352566840,0.18173286,85677.0,85661.0,0.01199408]
[1731352567039,0.005,85660.0,85649.0,0.1]
[1731352567303,0.17673286,85665.0,85619.0,0.0824]
[1731352567304,0.005,85664.0,85659.0,0.17504449]
[1731352567541,0.005,85664.0,85660.0,0.11994075]
[1731352567713,0.00168837,85661.0,85660.0,0.11994075]
[1731352567850,0.00168837,85662.0,85660.0,0.11994075]
[1731352569322,0.00168837,85662.0,85636.0,0.1]
[1731352569323,0.005,85643.0,85633.0,0.17504449]
[1731352569551,0.005,85634.0,85633.0,0.17504449]
[1731352570100,0.005,85634.0,85624.0,0.17504449]
[1731352570218,0.00168837,85625.0,85624.0,0.17504449]
[1731352570433,0.005,85634.0,85606.0,0.17504449]
[1731352570434,0.00168837,85629.0,85606.0,0.17504449]
[1731352570628,0.005,85634.0,85616.0,0.17504449]
[1731352570862,0.17504449,85644.0,85628.0,0.11994075]
[1731352571063,0.17504449,85644.0,85629.0,0.14527614]
[1731352571230,0.17504449,85644.0,85631.0,0.023]
[1731352571477,0.00168837,85643.0,85632.0,0.11994075]
[1731352572102,0.00168837,85645.0,85633.0,0.0008503]
[1731352572309,0.005,85649.0,85634.0,0.11994075]
[1731352572310,0.00668837,85649.0,85634.0,0.11994075]
[1731352572533,0.005,85640.0,85634.0,0.11994075]
[1731352573894,0.00168837,85654.0,85635.0,0.1871236]
[1731352574064,0.0489006,85664.0,85635.0,0.1871236]
[1731352574065,0.17504449,85653.0,85645.0,0.11994075]
[1731352574295,0.18004449,85653.0,85645.0,0.11994075]
[1731352574471,0.00168837,85658.0,85645.0,0.11994075]
[1731352574701,0.17504449,85656.0,85645.0,0.11994075]
[1731352574856,0.0067006,85664.0,85645.0,0.11994075]
[1731352574857,0.00168837,85659.0,85645.0,0.11994075]
[1731352575074,0.005,85660.0,85645.0,0.11994075]
[1731352575303,0.18174509,85664.0,85646.0,0.19703857]
[1731352575508,0.17504449,85663.0,85656.0,0.11994075]
[1731352575879,0.17504449,85663.0,85651.0,0.023]
[1731352576064,0.0017006,85664.0,85652.0,0.0072836]
[1731352576302,0.0017006,85664.0,85655.0,0.023]
[1731352576481,0.0017006,85664.0,85654.0,0.1]
[1731352576482,0.0017006,85664.0,85657.0,0.023]
[1731352576692,0.0017006,85664.0,85653.0,0.01302836]
[1731352576693,0.0017006,85664.0,85663.0,0.24294075]
[1731352576894,0.0017006,85664.0,85663.0,0.25255862]
[1731352577128,0.0017006,85664.0,85663.0,0.26420871]
[1731352577330,0.0017006,85664.0,85663.0,0.28829531]
[1731352580601,0.17504449,85687.0,85663.0,0.28829531]
[1731352580810,0.17504449,85687.0,85664.0,0.37637835]
[1731352581068,0.17504449,85715.0,85673.0,0.023]
[1731352581264,0.17504449,85715.0,85674.0,0.01398501]
[1731352581265,0.17504449,85686.0,85674.0,0.01398501]
[1731352581498,0.17504449,85686.0,85675.0,0.04193369]
[1731352581714,0.17504449,85715.0,85676.0,0.01893369]
[1731352581972,0.17504449,85715.0,85677.0,0.01893369]
[1731352582164,0.17504449,85715.0,85678.0,0.023]
[1731352582372,0.17504449,85715.0,85680.0,0.023]
[1731352582861,0.17504449,85715.0,85673.0,0.0239926]
[1731352582862,0.17504449,85715.0,85697.0,0.023]
[1731352583083,0.17504449,85715.0,85698.0,0.0761]
[1731352583084,0.17504449,85702.0,85698.0,0.0761]
[1731352583327,0.0016992,85720.0,85699.0,0.14193369]
[1731352583522,0.17504449,85714.0,85701.0,0.023]
[1731352583673,0.17504449,85714.0,85702.0,0.01893369]
[1731352583874,0.0016992,85720.0,85703.0,0.06859706]
[1731352584082,0.0016992,85720.0,85719.0,0.11994075]
[1731352584288,0.0016992,85720.0,85719.0,0.25022294]
[1731352584487,0.0016992,85720.0,85719.0,0.26187444]
[1731352584690,0.0016992,85720.0,85719.0,0.25022294]
[1731352584846,0.0016992,85720.0,85719.0,0.28689673]
[1731352585274,0.17504449,85740.0,85719.0,0.28922904]
[1731352585484,0.17504449,85731.0,85720.0,0.14193369]
[1731352585713,0.17504449,85740.0,85722.0,0.023]
[1731352585917,0.17504449,85731.0,85724.0,0.023]
[1731352586201,0.17504449,85740.0,85722.0,0.023]
[1731352586202,0.17504449,85740.0,85726.0,0.023]
[1731352586439,0.17504449,85740.0,85739.0,0.11994075]
[1731352586641,0.17504449,85740.0,85739.0,0.25022294]
[1731352586850,0.0016998,85750.0,85740.0,0.123]
[1731352587089,0.0016998,85750.0,85740.0,0.27524523]
[1731352587243,0.0016998,85750.0,85740.0,0.28689673]
[1731352587447,0.0002,85749.0,85740.0,0.28689673]
[1731352587663,0.0002,85769.0,85740.0,0.28689673]
[1731352587664,0.00168837,85777.0,85740.0,0.28689673]
[1731352587866,0.01,85811.0,85740.0,0.28689673]
[1731352588091,0.08632428,85852.0,85775.0,0.69978598]
[1731352588303,0.0002,85889.0,85775.0,0.69978598]
[1731352588549,0.25441538,86104.0,85788.0,0.6996473]
[1731352588795,0.25441538,86104.0,85741.0,0.2290479]
[1731352588796,0.0479,86025.0,85968.0,0.033]
[1731352589006,0.0479,86025.0,85968.0,0.12494075]
[1731352589007,0.69978598,85978.0,85968.0,0.12494075]
[1731352589220,0.69978598,85977.0,85968.0,0.14794075]
[1731352589453,0.69978598,85987.0,85963.0,0.005]
[1731352589670,0.69985598,85996.0,85966.0,0.005]
[1731352589671,0.002,85980.0,85966.0,0.005]
[1731352589877,0.002,85980.0,85931.0,0.00725752]
[1731352589878,0.002,85975.0,85943.0,0.005]
[1731352590110,0.0479,85988.0,85968.0,0.69978598]
[1731352590322,0.0479,85988.0,85929.0,0.005]
[1731352590323,0.11994075,85987.0,85949.0,0.11994075]
[1731352590532,0.11994075,85987.0,85976.0,0.69978598]
[1731352590751,0.11994075,85987.0,85949.0,0.11994075]
[1731352590752,0.11994075,85987.0,85977.0,0.69978598]
[1731352590959,0.0479,85988.0,85979.0,0.69978598]
[1731352591175,0.0479,85988.0,85966.0,0.023]